[Event "Minior-SM 2025"]
[Site "Uppsala, Sweden"]
[Date "2025.07.02"]
[Round "4.2"]
[White "Bardhan, Sayak Raj"]
[Black "Sun Aslund, Bruce"]
[Result "0-1"]
[TimeControl "90 min for 40 move + 30 min with an increment of 30 sec starting move 1"]
[WhiteFideId "1771850"]
[BlackFideId "1785010"]
[WhiteElo "1658"]
[BlackElo "1759"]

1. d4 {[%clk 01:30:56]} {[%emt 00:00:03]} Nf6 {[%clk 01:30:53]} {[%emt
00:00:08]} 2. c4 {[%clk 01:31:20]} {[%emt 00:00:05]} c5 {[%clk 01:31:14]}
{[%emt 00:00:09]} 3. e3 {[%clk 01:31:46]} {[%emt 00:00:04]} e6 {[%clk
01:30:29]} {[%emt 00:01:16]} 4. Nf3 {[%clk 01:32:08]} {[%emt 00:00:08]} cxd4
{[%clk 01:27:58]} {[%emt 00:03:01]} 5. exd4 {[%clk 01:32:28]} {[%emt 00:00:10]}
d5 {[%clk 01:27:34]} {[%emt 00:00:54]} 6. Nc3 {[%clk 01:32:23]} {[%emt
00:00:35]} dxc4 {[%emt 00:04:09]} 7. Bxc4 {[%clk 01:32:37]} {[%emt 00:00:14]}
Be7 {[%clk 01:21:22]} {[%emt 00:03:04]} 8. O-O {[%clk 01:31:07]} {[%emt
00:01:59]} O-O {[%clk 01:21:40]} {[%emt 00:00:13]} 9. Bf4 {[%clk 01:22:56]}
{[%emt 00:08:41]} Nd5 {[%clk 01:14:41]} {[%emt 00:07:30]} 10. Bg3 {[%clk
01:18:08]} {[%emt 00:05:18]} Nc6 {[%clk 01:11:05]} {[%emt 00:04:07]} 11. a3
{[%clk 01:06:27]} {[%emt 00:12:10]} Bf6 {[%clk 00:57:41]} {[%emt 00:13:55]} 12.
Qd3 {[%clk 01:00:31]} {[%emt 00:06:23]} a6 {[%clk 00:50:37]} {[%emt 00:07:37]}
13. Bb3 {[%emt 00:15:06]} Nde7 {[%clk 00:35:13]} {[%emt 00:15:52]} 14. Rad1
{[%clk 00:35:30]} {[%emt 00:10:55]} Ng6 {[%clk 00:17:14]} {[%emt 00:18:31]} 15.
Bc2 {[%clk 00:22:27]} {[%emt 00:13:32]} Qb6 {[%clk 00:14:14]} {[%emt 00:03:30]}
16. Rfe1 {[%clk 00:12:49]} {[%emt 00:10:08]} Rd8 {[%clk 00:10:47]} {[%emt
00:03:57]} 17. Na4 {[%clk 00:08:37]} {[%emt 00:04:42]} Qa5 {[%clk 00:10:33]}
{[%emt 00:00:44]} 18. b4 {[%clk 00:08:29]} {[%emt 00:00:38]} Qb5 {[%clk
00:08:57]} {[%emt 00:02:06]} 19. Qb3 {[%clk 00:07:50]} {[%emt 00:01:09]} b6
{[%clk 00:01:27]} {[%emt 00:08:00]} 20. Bc7 {[%emt 00:01:07]} Nxd4 {[%clk
00:00:55]} {[%emt 00:01:01]} 21. Nxd4 {[%clk 00:07:35]} {[%emt 00:00:10]} Rxd4
{[%clk 00:01:04]} {[%emt 00:00:20]} 22. Bxb6 {[%clk 00:06:53]} {[%emt
00:01:12]} Rxd1 {[%clk 00:00:40]} {[%emt 00:00:54]} 23. Rxd1 {[%clk 00:07:17]}
{[%emt 00:00:06]} Bb7 {[%clk 00:00:58]} {[%emt 00:00:12]} 24. Bc5 {[%clk
00:05:32]} {[%emt 00:02:16]} Bd5 {[%clk 00:00:40]} {[%emt 00:00:47]} 25. Qe3
{[%clk 00:04:15]} {[%emt 00:01:46]} Rd8 {[%clk 00:00:37]} {[%emt 00:00:34]} 26.
Nc3 {[%clk 00:04:00]} {[%emt 00:00:44]} Qc6 {[%clk 00:00:39]} {[%emt 00:00:27]}
27. Ba4 {[%clk 00:03:49]} {[%emt 00:00:43]} Qb7 {[%clk 00:00:43]} {[%emt
00:00:26]} 28. Nxd5 {[%clk 00:03:18]} {[%emt 00:01:01]} exd5 {[%clk 00:01:02]}
{[%emt 00:00:12]} 29. g3 {[%clk 00:02:08]} {[%emt 00:01:40]} h6 {[%clk
00:00:39]} {[%emt 00:00:53]} 30. Bc2 {[%clk 00:01:43]} {[%emt 00:00:54]} Nf8
{[%clk 00:00:35]} {[%emt 00:00:34]} 31. Qf3 {[%clk 00:01:36]} {[%emt 00:00:37]}
Qd7 {[%clk 00:00:35]} {[%emt 00:00:29]} 32. Qd3 {[%clk 00:01:26]} {[%emt
00:00:41]} Ng6 {[%clk 00:00:38]} {[%emt 00:00:27]} 33. Qxa6 {[%clk 00:01:37]}
{[%emt 00:00:19]} Ne5 {[%clk 00:00:31]} {[%emt 00:00:37]} 34. Kg2 {[%clk
00:01:31]} {[%emt 00:00:36]} Qe8 {[%clk 00:00:33]} {[%emt 00:00:27]} 35. Be3
{[%clk 00:01:20]} {[%emt 00:00:41]} Nc4 {[%clk 00:00:42]} {[%emt 00:00:21]} 36.
Bxh6 {[%emt 00:00:41]} Ra8 {[%clk 00:00:55]} 37. Qb7 {[%clk 00:01:26]} {[%emt
00:00:30]} gxh6 {[%clk 00:01:11]} {[%emt 00:00:14]} 38. Qxd5 {[%clk 00:01:48]}
{[%emt 00:00:07]} Nxa3 {[%clk 00:01:19]} {[%emt 00:00:22]} 39. Bf5 {[%clk
00:01:49]} {[%emt 00:00:29]} Rd8 {[%clk 00:00:49]} {[%emt 00:01:00]} 40. Qf3
{[%clk 00:02:02]} {[%emt 00:00:18]} Rxd1 {[%clk 00:00:55]} 41. Qxd1 {[%clk
00:02:17]} {[%emt 00:00:39]} Qc6+ {[%clk 00:22:58]} {[%emt 00:08:27]} 42. Qf3
{[%clk 00:22:02]} {[%emt 00:10:44]} Qxf3+ {[%clk 00:22:21]} {[%emt 00:01:07]}
43. Kxf3 {[%clk 00:22:26]} {[%emt 00:00:05]} Bc3 {[%clk 00:20:15]} {[%emt
00:02:36]} 44. Bd3 {[%clk 00:20:40]} {[%emt 00:02:16]} Bxb4 {[%clk 00:20:12]}
{[%emt 00:00:34]} 45. Kg4 {[%clk 00:18:31]} {[%emt 00:02:37]} Kg7 {[%clk
00:19:03]} {[%emt 00:01:41]} 46. Kh5 {[%clk 00:16:18]} {[%emt 00:02:42]} Bc5
{[%clk 00:13:29]} {[%emt 00:06:05]} 47. f4 {[%clk 00:12:51]} {[%emt 00:03:56]}
Bg1 {[%clk 00:13:27]} {[%emt 00:00:32]} 48. h3 {[%clk 00:13:13]} {[%emt
00:00:07]} Bf2 {[%clk 00:11:53]} {[%emt 00:02:04]} 49. Kg4 {[%clk 00:13:26]}
{[%emt 00:00:16]} Kf6 {[%clk 00:10:57]} {[%emt 00:01:26]} 50. Kf3 {[%clk
00:10:58]} {[%emt 00:02:59]} Be1 {[%clk 00:10:02]} {[%emt 00:01:26]} 51. Kg2
{[%clk 00:09:24]} {[%emt 00:02:03]} Ke6 {[%clk 00:09:09]} {[%emt 00:01:24]} 52.
Kf3 {[%clk 00:09:12]} {[%emt 00:00:41]} Kd5 {[%clk 00:07:00]} {[%emt 00:02:39]}
53. Bh7 {[%clk 00:07:42]} {[%emt 00:01:59]} Nb5 {[%clk 00:06:50]} {[%emt
00:00:42]} 54. Be4+ {[%clk 00:05:58]} {[%emt 00:02:14]} Ke6 {[%clk 00:06:43]}
{[%emt 00:00:36]} 55. Kg2 {[%clk 00:05:32]} {[%emt 00:00:56]} Nd4 {[%clk
00:05:37]} {[%emt 00:01:37]} 56. g4 {[%clk 00:05:14]} {[%emt 00:00:48]} Bh4
{[%clk 00:05:37]} {[%emt 00:00:30]} 57. f5+ {[%clk 00:04:21]} {[%emt 00:01:23]}
Ke5 {[%clk 00:05:10]} {[%emt 00:00:57]} 58. Bd3 {[%clk 00:04:36]} {[%emt
00:00:12]} f6 {[%clk 00:04:30]} {[%emt 00:01:14]} 59. Bf1 {[%clk 00:04:46]}
{[%emt 00:00:18]} Kf4 {[%clk 00:04:39]} {[%emt 00:00:21]} 60. Kh2 {[%clk
00:05:03]} {[%emt 00:00:11]} Kf3 {[%clk 00:03:43]} {[%emt 00:01:29]} 61. Bg2+
{[%clk 00:05:18]} {[%emt 00:00:15]} Kf2 {[%clk 00:03:52]} {[%emt 00:00:21]} 62.
Bd5 {[%clk 00:03:26]} {[%emt 00:02:21]} Nf3 {[%clk 00:02:23]} {[%emt 00:02:00]}
63. Kh1 {[%clk 00:03:40]} {[%emt 00:00:16]} Ng5 {[%clk 00:02:25]} {[%emt
00:00:28]} 64. Bg2 {[%clk 00:04:00]} {[%emt 00:00:10]} Nf3 {[%clk 00:02:48]}
{[%emt 00:00:07]} 65. g5 {[%clk 00:03:42]} {[%emt 00:00:48]} Nxg5 {[%clk
00:01:39]} {[%emt 00:01:36]} 66. Kh2 {[%clk 00:04:06]} {[%emt 00:00:08]} Bg3
{[%clk 00:01:13]} {[%emt 00:00:57]} 67. Kh1 {[%clk 00:04:34]} {[%emt 00:00:02]}
Nf3 {[%clk 00:01:32]} {[%emt 00:00:10]} 68. h4 {[%clk 00:04:37]} {[%emt
00:00:27]} Nxh4 {[%clk 00:01:38]} {[%emt 00:00:25]} 69. Bh3 {[%clk 00:05:02]}
{[%emt 00:00:04]} h5 {[%clk 00:01:14]} {[%emt 00:00:53]} 70. Bg2 {[%clk
00:05:26]} {[%emt 00:00:06]} Nxf5 {[%clk 00:01:37]} {[%emt 00:00:09]} 71. Be4
{[%clk 00:05:50]} {[%emt 00:00:06]} Nd6 {[%clk 00:01:37]} {[%emt 00:00:26]} 72.
Bb7 {[%clk 00:06:10]} {[%emt 00:00:13]} f5 {[%clk 00:01:43]} {[%emt 00:00:24]}
73. Be4 {[%clk 00:06:29]} {[%emt 00:00:11]} f4 {[%clk 00:01:56]} {[%emt
00:00:17]} 74. Bg2 {[%clk 00:06:54]} {[%emt 00:00:05]} f3 {[%clk 00:01:12]}
{[%emt 00:01:14]} 75. Bf1 {[%clk 00:07:18]} {[%emt 00:00:06]} Ke3 {[%clk
00:01:33]} {[%emt 00:00:09]} 76. Kg1 {[%clk 00:07:42]} {[%emt 00:00:07]} Nf5
{[%clk 00:01:40]} {[%emt 00:00:22]} 77. Bh3 {[%clk 00:07:52]} {[%emt 00:00:20]}
Bf2+ {[%clk 00:01:50]} {[%emt 00:00:20]} 78. Kf1 {[%clk 00:08:17]} {[%emt
00:00:06]} Ng3# {[%emt 00:00:08]} 0-1

[Event "Minior-SM 2025"]
[Site "Uppsala, Sweden"]
[Date "2025.07.02"]
[Round "4.3"]
[White "Leon, David"]
[Black "Efimova, Paulina"]
[Result "1-0"]
[TimeControl "90 min for 40 move + 30 min with an increment of 30 sec starting move 1"]
[WhiteFideId "1785338"]
[BlackFideId "1772155"]
[WhiteElo "1734"]
[BlackElo "1581"]

1. e4 {[%clk 01:30:58]} {[%emt 00:00:01]} c6 {[%clk 01:30:56]} {[%emt
00:00:05]} 2. d4 {[%clk 01:29:47]} {[%emt 00:01:42]} d5 {[%clk 01:31:19]}
{[%emt 00:00:07]} 3. exd5 {[%clk 01:29:29]} {[%emt 00:00:47]} cxd5 {[%clk
01:31:07]} {[%emt 00:00:42]} 4. Bd3 {[%clk 01:29:22]} {[%emt 00:00:36]} Nc6
{[%clk 01:30:51]} {[%emt 00:00:47]} 5. c3 {[%clk 01:29:22]} {[%emt 00:00:30]}
Nf6 {[%clk 01:27:42]} {[%emt 00:03:39]} 6. Bg5 {[%clk 01:26:01]} {[%emt
00:03:50]} e6 {[%clk 01:22:13]} {[%emt 00:05:59]} 7. Nf3 {[%clk 01:25:33]}
{[%emt 00:00:58]} Bd6 {[%clk 01:21:13]} {[%emt 00:01:29]} 8. Nbd2 {[%clk
01:23:18]} {[%emt 00:02:47]} h6 {[%clk 01:13:55]} {[%emt 00:07:48]} 9. Bh4
{[%clk 01:21:02]} {[%emt 00:02:45]} O-O {[%clk 01:13:25]} {[%emt 00:01:01]} 10.
O-O {[%clk 01:20:31]} {[%emt 00:01:00]} Nb8 {[%clk 01:11:31]} {[%emt 00:02:26]}
11. Ne5 {[%clk 01:10:19]} {[%emt 00:10:40]} Nbd7 {[%clk 01:10:58]} {[%emt
00:01:04]} 12. Bg3 {[%clk 00:56:45]} {[%emt 00:14:04]} Qc7 {[%clk 01:08:21]}
{[%emt 00:03:07]} 13. Re1 {[%clk 00:54:00]} {[%emt 00:03:14]} b6 {[%clk
01:02:07]} {[%emt 00:06:45]} 14. c4 {[%clk 00:52:34]} {[%emt 00:01:56]} dxc4
{[%clk 01:00:37]} {[%emt 00:02:00]} 15. Ndxc4 {[%clk 00:51:58]} {[%emt
00:01:06]} Ne8 {[%clk 00:52:07]} {[%emt 00:08:58]} 16. Nxd6 {[%clk 00:40:33]}
{[%emt 00:11:57]} Nxd6 {[%clk 00:51:51]} {[%emt 00:00:47]} 17. Rc1 {[%clk
00:40:40]} {[%emt 00:00:22]} Qb7 {[%clk 00:47:25]} {[%emt 00:04:46]} 18. Ng6
{[%clk 00:38:18]} {[%emt 00:03:01]} fxg6 {[%clk 00:45:58]} {[%emt 00:01:57]} 19.
Bxd6 {[%clk 00:38:30]} {[%emt 00:00:19]} Rf6 {[%clk 00:45:07]} {[%emt
00:01:20]} 20. Be4 {[%clk 00:38:30]} {[%emt 00:00:31]} Qa6 {[%clk 00:44:42]}
{[%emt 00:00:55]} 21. Bxa8 {[%clk 00:38:33]} {[%emt 00:00:27]} Bb7 {[%clk
00:44:05]} {[%emt 00:01:06]} 22. Bxb7 {[%clk 00:38:27]} {[%emt 00:00:37]} Qxb7
{[%clk 00:44:25]} {[%emt 00:00:09]} 23. Rc7 {[%clk 00:38:31]} {[%emt 00:00:27]}
Qd5 {[%clk 00:43:40]} {[%emt 00:01:14]} 24. Rxd7 {[%clk 00:38:24]} {[%emt
00:00:39]} 1-0

[Event "Minior-SM 2025"]
[Site "Uppsala, Sweden"]
[Date "2025.07.02"]
[Round "4.4"]
[White "Gohlin Skoglund, Dorian"]
[Black "Ostafiev, Sara"]
[Result "0-1"]
[TimeControl "90 min for 40 move + 30 min with an increment of 30 sec starting move 1"]
[WhiteFideId "1784269"]
[BlackFideId "1773615"]
[WhiteElo "1687"]
[BlackElo "1579"]

1. e4 {[%clk 01:30:58]} {[%emt 00:00:02]} e5 {[%clk 01:30:46]} {[%emt
00:00:14]} 2. Nf3 {[%clk 01:31:22]} {[%emt 00:00:07]} Nc6 {[%clk 01:31:01]}
{[%emt 00:00:15]} 3. c3 {[%clk 01:31:45]} {[%emt 00:00:07]} Nge7 {[%clk
01:25:31]} {[%emt 00:05:58]} 4. d4 {[%clk 01:32:00]} {[%emt 00:00:17]} d5
{[%clk 01:25:19]} {[%emt 00:00:42]} 5. Nxe5 {[%clk 01:30:37]} {[%emt 00:01:52]}
dxe4 {[%clk 01:23:12]} {[%emt 00:02:37]} 6. Bb5 {[%clk 01:29:58]} {[%emt
00:01:08]} a6 {[%clk 01:22:11]} {[%emt 00:01:32]} 7. Nxc6 {[%clk 01:23:41]}
{[%emt 00:06:48]} Nxc6 {[%clk 01:22:22]} {[%emt 00:00:19]} 8. Bc4 {[%clk
01:22:29]} {[%emt 00:01:42]} Bd6 {[%clk 01:19:52]} {[%emt 00:02:59]} 9. O-O
{[%clk 01:19:30]} {[%emt 00:03:28]} h5 {[%emt 00:06:58]} 10. d5 {[%clk
01:18:06]} {[%emt 00:01:51]} Ne5 {[%clk 01:11:32]} {[%emt 00:02:26]} 11. Be2
{[%clk 01:17:10]} {[%emt 00:01:27]} Bg4 {[%clk 01:10:35]} {[%emt 00:01:26]} 12.
Qa4+ {[%clk 01:14:35]} {[%emt 00:03:06]} Qd7 {[%clk 01:00:45]} {[%emt
00:10:20]} 13. Qxd7+ {[%clk 01:08:05]} {[%emt 00:07:00]} Kxd7 {[%clk 00:57:38]}
{[%emt 00:03:36]} 14. f3 {[%clk 01:05:23]} {[%emt 00:03:12]} exf3 {[%clk
00:55:52]} {[%emt 00:02:16]} 15. Bxf3 {[%clk 01:05:11]} {[%emt 00:00:42]} Nxf3+
{[%clk 00:55:30]} {[%emt 00:00:53]} 16. gxf3 {[%clk 01:05:09]} {[%emt
00:00:31]} Bh3 {[%clk 00:55:41]} {[%emt 00:00:19]} 17. Re1 {[%clk 01:02:56]}
{[%emt 00:02:43]} Rhe8 {[%clk 00:55:40]} {[%emt 00:00:31]} 18. Bd2 {[%clk
01:02:19]} {[%emt 00:01:08]} Bc5+ {[%clk 00:54:21]} {[%emt 00:01:48]} 19. Kh1
{[%clk 01:00:15]} {[%emt 00:02:35]} Rxe1+ {[%clk 00:53:46]} {[%emt 00:01:05]}
20. Bxe1 {[%clk 01:00:33]} {[%emt 00:00:11]} Re8 {[%clk 00:53:44]} {[%emt
00:00:31]} 21. Na3 {[%clk 00:59:02]} {[%emt 00:02:04]} Re2 {[%clk 00:53:32]}
{[%emt 00:00:41]} 0-1

[Event "Minior-SM 2025"]
[Site "Uppsala, Sweden"]
[Date "2025.07.03"]
[Round "5.1"]
[White "Ostafiev, Sara"]
[Black "Andreasson, Leo"]
[Result "1/2-1/2"]
[TimeControl "90 min for 40 move + 30 min with an increment of 30 sec starting move 1"]
[WhiteFideId "1773615"]
[BlackFideId "1768980"]
[WhiteElo "1579"]
[BlackElo "1636"]

1. e4 {[%clk 01:30:57]} {[%emt 00:00:02]} c6 {[%clk 01:30:48]} {[%emt
00:00:13]} 2. d4 {[%clk 01:30:09]} {[%emt 00:01:17]} d5 {[%clk 01:31:03]}
{[%emt 00:00:15]} 3. exd5 {[%clk 01:27:07]} {[%emt 00:03:32]} cxd5 {[%clk
01:31:25]} {[%emt 00:00:08]} 4. Bd3 {[%clk 01:25:27]} {[%emt 00:02:11]} Nf6
{[%clk 01:29:16]} {[%emt 00:02:39]} 5. Ne2 {[%clk 01:20:10]} {[%emt 00:05:46]}
Nc6 {[%clk 01:23:38]} {[%emt 00:06:09]} 6. Bf4 {[%clk 01:16:36]} {[%emt
00:04:03]} Qb6 {[%clk 01:19:20]} {[%emt 00:04:49]} 7. Nbc3 {[%clk 01:09:22]}
{[%emt 00:07:44]} a6 {[%emt 00:03:34]} 8. a4 e6 9. Qc1 Nb4 10. O-O Bd7 11. Be5
Nxd3 12. cxd3 Be7 13. Qe3 {[%clk 01:04:27]} h5 {[%clk 01:10:08]} 1/2-1/2

[Event "Minior-SM 2025"]
[Site "Uppsala, Sweden"]
[Date "2025.07.03"]
[Round "5.2"]
[White "Sun Aslund, Bruce"]
[Black "Leon, David"]
[Result "0-1"]
[TimeControl "90 min for 40 move + 30 min with an increment of 30 sec starting move 1"]
[WhiteFideId "1785010"]
[BlackFideId "1785338"]
[WhiteElo "1759"]
[BlackElo "1734"]

1. e4 {[%clk 01:30:58]} {[%emt 00:00:01]} e6 {[%clk 01:30:51]} {[%emt
00:00:10]} 2. d3 {[%clk 01:31:22]} {[%emt 00:00:06]} d5 {[%clk 01:28:58]}
{[%emt 00:02:23]} 3. Nd2 {[%clk 01:31:45]} {[%emt 00:00:06]} dxe4 {[%clk
01:26:52]} {[%emt 00:02:37]} 4. dxe4 {[%clk 01:30:22]} {[%emt 00:01:52]} Bd7
{[%clk 01:25:35]} {[%emt 00:01:47]} 5. Ngf3 {[%clk 01:30:05]} {[%emt 00:00:47]}
Bc6 {[%clk 01:25:10]} {[%emt 00:00:55]} 6. Bd3 {[%clk 01:28:23]} {[%emt
00:02:13]} Nf6 {[%clk 01:23:26]} {[%emt 00:02:14]} 7. O-O {[%clk 01:22:57]}
{[%emt 00:05:55]} Nbd7 {[%clk 01:22:40]} {[%emt 00:01:17]} 8. Qe2 {[%clk
01:10:35]} {[%emt 00:12:51]} a6 {[%clk 01:04:07]} {[%emt 00:19:04]} 9. e5
{[%clk 01:01:52]} {[%emt 00:09:13]} Nd5 {[%clk 01:02:17]} {[%emt 00:02:19]} 10.
Ne4 {[%clk 00:58:28]} {[%emt 00:03:55]} Nc5 {[%clk 00:55:15]} {[%emt 00:07:32]}
11. Nxc5 {[%clk 00:57:02]} {[%emt 00:01:56]} Bxc5 {[%clk 00:53:12]} {[%emt
00:02:32]} 12. a3 {[%clk 00:44:06]} {[%emt 00:13:27]} Qd7 {[%clk 00:41:41]}
{[%emt 00:12:00]} 13. Rd1 {[%clk 00:25:07]} {[%emt 00:19:30]} O-O-O {[%clk
00:35:38]} {[%emt 00:06:33]} 14. c4 {[%clk 00:25:05]} {[%emt 00:00:32]} Nb6
{[%clk 00:25:52]} {[%emt 00:10:16]} 15. Be3 {[%clk 00:25:17]} {[%emt 00:00:18]}
Bxf3 {[%clk 00:23:38]} {[%emt 00:02:44]} 16. Qxf3 {[%clk 00:24:32]} {[%emt
00:01:14]} Bxe3 {[%clk 00:22:51]} {[%emt 00:01:17]} 17. Qxe3 {[%clk 00:24:41]}
{[%emt 00:00:22]} Qd4 {[%clk 00:20:48]} {[%emt 00:02:32]} 18. Qxd4 {[%clk
00:21:35]} {[%emt 00:03:37]} Rxd4 {[%clk 00:20:38]} {[%emt 00:00:40]} 19. b3
{[%clk 00:16:58]} {[%emt 00:05:07]} Nd7 {[%clk 00:18:58]} {[%emt 00:02:10]} 20.
Bc2 {[%clk 00:12:58]} {[%emt 00:04:29]} Rxd1+ {[%clk 00:18:39]} {[%emt
00:00:49]} 21. Rxd1 {[%clk 00:12:31]} {[%emt 00:00:57]} Nxe5 {[%clk 00:18:49]}
{[%emt 00:00:20]} 22. f4 {[%clk 00:10:08]} {[%emt 00:02:52]} Ng4 {[%clk
00:16:34]} {[%emt 00:02:45]} 23. Be4 {[%clk 00:09:27]} {[%emt 00:01:12]} Nf6
{[%clk 00:15:36]} {[%emt 00:01:29]} 24. Bf3 {[%clk 00:09:37]} {[%emt 00:00:20]}
c5 {[%clk 00:15:00]} {[%emt 00:01:06]} 25. Kf2 {[%clk 00:07:20]} {[%emt
00:02:46]} h5 {[%clk 00:09:53]} {[%emt 00:05:38]} 26. b4 {[%clk 00:04:54]}
{[%emt 00:02:56]} Ng4+ {[%clk 00:07:09]} {[%emt 00:03:14]} 27. Bxg4 {[%clk
00:04:10]} {[%emt 00:01:14]} hxg4 {[%clk 00:07:31]} {[%emt 00:00:07]} 28. bxc5
{[%clk 00:04:30]} {[%emt 00:00:11]} Rxh2 {[%clk 00:07:29]} {[%emt 00:00:32]} 29.
Kg3 {[%clk 00:04:26]} {[%emt 00:00:34]} Rh5 {[%clk 00:07:34]} {[%emt 00:00:24]}
30. Kxg4 {[%clk 00:03:24]} {[%emt 00:01:33]} Rxc5 {[%clk 00:07:54]} {[%emt
00:00:10]} 31. Rd4 {[%clk 00:01:14]} {[%emt 00:02:40]} Ra5 {[%clk 00:08:10]}
{[%emt 00:00:14]} 32. Rd3 {[%clk 00:01:30]} {[%emt 00:00:14]} Ra4 {[%clk
00:08:21]} {[%emt 00:00:19]} 33. Rc3 {[%clk 00:01:32]} {[%emt 00:00:28]} Kd7
{[%clk 00:07:55]} {[%emt 00:00:55]} 34. Kf3 {[%clk 00:00:35]} {[%emt 00:01:27]}
Kc6 {[%clk 00:07:55]} {[%emt 00:00:31]} 35. Ke3 {[%clk 00:00:54]} {[%emt
00:00:11]} Kc5 {[%clk 00:08:01]} {[%emt 00:00:24]} 36. Kd3 {[%clk 00:00:46]}
{[%emt 00:00:37]} f5 {[%clk 00:08:22]} {[%emt 00:00:10]} 37. g3 {[%clk
00:00:50]} {[%emt 00:00:26]} g6 {[%clk 00:06:50]} {[%emt 00:02:01]} 38. Rb3
{[%clk 00:00:59]} {[%emt 00:00:22]} b6 {[%clk 00:06:45]} {[%emt 00:00:36]} 39.
Rc3 {[%clk 00:00:48]} {[%emt 00:00:40]} a5 {[%clk 00:06:25]} {[%emt 00:00:50]}
40. Rb3 {[%clk 00:00:53]} {[%emt 00:00:25]} Rxc4 {[%clk 00:02:43]} {[%emt
00:04:12]} 41. Rxb6 {[%clk 00:01:03]} {[%emt 00:00:20]} Rd4+ {[%clk 00:01:58]}
{[%emt 00:01:14]} 42. Kc3 {[%clk 00:01:20]} {[%emt 00:00:14]} Re4 {[%clk
00:01:35]} {[%emt 00:00:52]} 43. Ra6 {[%clk 00:01:09]} {[%emt 00:00:41]} Kb5
{[%clk 00:01:44]} {[%emt 00:00:21]} 44. Ra8 {[%clk 00:00:58]} {[%emt 00:00:41]}
Re3+ {[%clk 00:29:58]} {[%emt 00:02:16]} 45. Kb2 {[%clk 00:31:03]} {[%emt
00:00:25]} Rxg3 {[%clk 00:27:21]} {[%emt 00:03:07]} 46. Re8 {[%clk 00:31:03]}
{[%emt 00:00:30]} Ka4 {[%clk 00:23:29]} {[%emt 00:04:22]} 47. Rxe6 {[%clk
00:31:00]} {[%emt 00:00:33]} Rg2+ {[%clk 00:22:34]} {[%emt 00:01:25]} 0-1